Cogmind - Beta 16 @@@ ROGUE MODE // 2025.12.15 @ 01:17:45 Player: H0-R5E Result: Self-destructed Performance ------------- Evolutions (4) 2000 Regions Visited (9) 1800 Robots Destroyed (44) 220 Value Destroyed (1251) 1251 Prototype IDs (3) 60 Alien Tech Used (0) 0 Bonus (536) 536 TOTAL SCORE: 5867 Bonus ------- High Alert Combat Kills 36 Entered DSFs 500 Cogmind --------- Core Integrity 804/850 Matter 239/300 Energy 150/150 System Corruption 3% Temperature Cool (0) Movement Hovering (120) Ox1 Location -6/Lower Caves Parts ------- > --- POWER (2) -------- Micro Nuclear Core > --- PROPULSION (4) --- Improved Linear Gravjet > --- UTILITY (7) ------ Power Amplifier Small Storage Unit Experimental Sensor Array Improved Signal Interpreter Advanced Terrain Scan Processor Drone Bay (0/2) > --- WEAPON (2) ------- Improved Datajack > --- INVENTORY (8) ---- Energy Well (350) Structural Scanner 0b10 Decoder Chip [Looter] Stasis Canceller ECM Suite System Guard Drone Bay (2/2) Peak State ------------ > --- POWER ------------ Micro Nuclear Core > --- PROPULSION ------- Gravmag System Gravmag System Improved Linear Gravjet Improved Linear Gravjet > --- UTILITY ---------- Power Amplifier Small Storage Unit Structural Scanner Experimental Sensor Array Improved Terrain Scanner Advanced Terrain Scan Processor Drone Bay > --- WEAPON ----------- Long-range Missile Launcher Chainsword > --- INVENTORY -------- Energy Well Advanced Weight Redist. System Improved Signal Interpreter Stasis Canceller ECM Suite Experimental Propulsion Shielding Drone Bay Datajack [Rating: 65] Favorites ----------- Power Micro Nuclear Core Engine Light Ion Engine Power Core Micro Nuclear Core Propulsion Gravmag System Leg Aluminum Leg Hover Unit Gravmag System Flight Unit Flight Unit Utility Small Storage Unit Device Improved Terrain Scanner Storage Small Storage Unit Processor Advanced Terrain Scan Processor Protection Propulsion Shielding Weapon Chainsword Energy Gun Medium Laser Ballistic Gun Light Assault Rifle Launcher Grenade Launcher Slashing Weapon Chainsword Special Melee Weapon Improved Datajack Build | -11 -10 -9 -9 -8 -7 -7 -6 -6 -6 ------- Run | Yrd Mat Mat Min Mat Fac DSF Fac Low Low Slots Evolved 8 | . . 2 . 2 2 . 2 . . Power 1 | . . 1 . . . . . . . Propulsion 2 | . . 1 . 1 . . . . . Utility 5 | . . . . 1 2 . 2 . . Weapon . | . . . . . . . . . . Parts Attached 51 | 7 14 4 3 1 1 2 18 . 1 Power 6 | 1 2 . 1 . . . 2 . . Engine 5 | 1 2 . 1 . . . 1 . . Core 1 | . . . . . . . 1 . . Reactor . | . . . . . . . . . . Propulsion 15 | 2 5 2 2 . . 2 2 . . Treads . | . . . . . . . . . . Leg 5 | 2 3 . . . . . . . . Wheel . | . . . . . . . . . . Hover 4 | . . . . . . 2 2 . . Flight 6 | . 2 2 2 . . . . . . Utility 19 | 2 5 1 . 1 1 . 9 . . Device 12 | 1 2 1 . 1 . . 7 . . Storage 1 | 1 . . . . . . . . . Processor 4 | . 2 . . . 1 . 1 . . Hackware . | . . . . . . . . . . Protection 2 | . 1 . . . . . 1 . . Artifact . | . . . . . . . . . . Weapon 11 | 2 2 1 . . . . 5 . 1 Energy Gun 2 | . 1 . . . . . 1 . . Energy Cannon . | . . . . . . . . . . Ballistic Gun 3 | 2 . . . . . . 1 . . Ballistic Cannon . | . . . . . . . . . . Launcher 2 | . 1 . . . . . 1 . . Special Weapon . | . . . . . . . . . . Impact Weapon . | . . . . . . . . . . Slashing Weapon 2 | . . 1 . . . . 1 . . Piercing Weapon . | . . . . . . . . . . Special Melee Weapon 2 | . . . . . . . 1 . 1 Unidentified Prototypes 3 | . . . . 1 . . 2 . . Parts Lost 18 | . 1 . . . . 5 7 . 5 Power 3 | . 1 . . . . 1 1 . . Propulsion 6 | . . . . . . 3 2 . 1 Utility 6 | . . . . . . 1 2 . 3 Weapon 3 | . . . . . . . 2 . 1 Highest Loss Streak 5 | . 1 . . . . 5 2 . 3 To Critical Strikes . | . . . . . . . . . . Average Backups 6 | 1 4 7 8 7 7 7 6 8 7 Power . | . . . . . . . . . . Propulsion . | . . . . . . . . . . Utility 4 | . 2 5 6 5 4 4 5 7 6 Weapon 1 | . 1 1 1 1 2 2 1 . . Tool/Special . | . . . . . . . . . . Unused Backups 9 | . 2 . 1 1 . . 2 . 3 Power . | . . . . . . . . . . Propulsion . | . . . . . . . . . . Utility 7 | . 1 . 1 . . . 2 . 3 Weapon 2 | . 1 . . 1 . . . . . Tool/Special . | . . . . . . . . . . Average Slot Usage (%) 82 | . 93 88 96 90 81 61 79 73 77 Engine 5 | . 13 11 18 18 15 6 1 . . Core 3 | . . . . . . . 5 6 6 Leg 3 | . 14 . . . . . . . . Hover 9 | . . . . . . . 17 13 12 Flight 8 | . 13 33 33 27 23 9 . . . Device 18 | . 12 11 11 14 9 12 25 26 19 Storage 6 | . 3 11 11 9 7 7 6 6 6 Processor 7 | . 10 . . . 2 7 6 13 13 Protection 3 | . . . . 3 7 7 4 . 5 Ballistic Gun 5 | . 20 1 . . . . 3 . . Launcher 2 | . 2 11 11 9 7 2 1 . . Slashing Weapon 3 | . . 9 11 9 7 5 1 6 6 Special Melee Weapon 1 | . . . . . . . 2 . 5 Peak Build Rating 65 | 9 10 11 12 21 21 21 65 49 57 Average Rating 31 | 5 8 9 11 17 18 15 44 49 53 On Entrance 18 | . 9 9 11 12 14 21 18 46 49 Avg Prop Armor Cover (%) 26 | . . . . . . . 26 . . Naked Turns . | . . . . . . . . . . Heaviest Build 35 | 12 12 13 16 17 18 18 35 17 24 Greatest Support 47 | 20 20 18 18 18 18 18 47 28 28 Greatest Overweight (x) 2 | 1 1 . . . . 1 2 . 2 Average Overweight (x) . | . . . . . . . . . . Largest Inventory Capacity 8 | 8 8 8 8 8 8 8 8 8 8 Average Capacity 7 | 7 5 8 8 8 8 8 8 8 8 Most Carried 8 | 3 8 8 8 8 8 8 8 8 8 Average Carried 6 | 1 4 7 7 7 7 7 6 8 7 Final Capacity 8 | 8 8 8 8 8 8 8 8 8 8 Final Carried 8 | 2 8 8 8 8 7 8 8 8 7 Class Distribution -------------------- 48% | Mutant 23% | Scout 16% | Scavenger-Mutant 10% | Scavenger-Sprinter Dominant Class ---------------- Scavenger-Mutant | -10/Materials Scavenger-Mutant | -9/Materials Scavenger-Sprinter | -9/Mines Scavenger-Sprinter | -8/Materials Scavenger-Sprinter | -7/Factory Mutant | -7/DSF Mutant | -6/Factory Scout | -6/Lower Caves Mutant | -6/Lower Caves Resources | -11 -10 -9 -9 -8 -7 -7 -6 -6 -6 ----------- Run | Yrd Mat Mat Min Mat Fac DSF Fac Low Low Matter Collected 1310 | 247 274 92 171 40 . . 402 28 56 Remotely . | . . . . . . . . . . Salvage Created 1273 | 131 341 92 60 48 . . 601 . . Parts 80 | 7 30 3 7 5 . . 28 . . Haulers Intercepted 2 | . 2 . . . . . . . . Recyclers Shooed 3 | . 1 . . . . . 2 . . Parts Field Recycled . | . . . . . . . . . . Retrieved Matter . | . . . . . . . . . . Parts Self-Destructed . | . . . . . . . . . . Prevented . | . . . . . . . . . . Parts Restored . | . . . . . . . . . . Kills | -11 -10 -9 -9 -8 -7 -7 -6 -6 -6 ------- Run | Yrd Mat Mat Min Mat Fac DSF Fac Low Low Combat Hostiles Destroyed 22 | . 7 . 3 1 . . 11 . . Guns 9 | . 7 . . . . . 2 . . AOE 13 | . . . 3 1 . . 9 . . Classes Destroyed 11 | 2 4 1 1 2 . . 1 . . Worker 5 | . . . 1 . . . 4 . . Builder 4 | . 1 . . . . . 3 . . Tunneler 2 | 2 . . . . . . . . . Hauler 2 | . 2 . . . . . . . . Recycler 4 | 1 . 1 . . . . 2 . . Operator 1 | . . . . 1 . . . . . Watcher 4 | . . 1 . . . . 3 . . Swarmer 9 | . 3 . 2 . . . 4 . . Grunt 10 | . 4 . 1 . . . 5 . . Hunter 1 | . . . . 1 . . . . . Programmer 2 | . . . . . . . 2 . . Best Kill Streak 9 | 2 4 1 2 2 . . 9 . . Combat Bots Only 4 | . 4 . 2 1 . . 4 . . Max Kills in Single Turn 6 | 1 2 1 2 2 . . 6 . . Gunslinging 1 | . 1 . . . . . . . . Exploded 2 | . . . 2 1 . . 2 . . Melee . | . . . . . . . . . . Uniques/NPCs Destroyed . | . . . . . . . . . . Combat | -11 -10 -9 -9 -8 -7 -7 -6 -6 -6 -------- Run | Yrd Mat Mat Min Mat Fac DSF Fac Low Low Hostile Shots Fired 190 | . 33 2 8 11 . 39 73 . 24 Missed 71 | . 11 2 3 4 . 13 31 . 7 Hits 119 | . 22 . 5 7 . 26 42 . 17 Melee 7 | . . . . . . 6 . . 1 Projectile 112 | . 22 . 5 7 . 20 42 . 16 AOE 1 | . . . . . . 1 . . . Critical Strikes 6 | . . . . . . 3 3 . . Actively Blocked 2 | . . . . . . 2 . . . Damage Taken 2119 | . 235 . 86 116 . 613 795 . 274 Core 595 | . 29 . 31 33 . 456 32 . 14 Absorbed by Shields 111 | . . . . . . 111 . . . Redirected to Shielding 108 | . . . . 16 . 14 27 . 51 Regen/Repaired (Parts) 20 | . 20 . . . . . . . . Core Remaining (%) 81 | 100 88 . 92 94 . 34 . . . Volleys Fired 98 | 16 47 1 2 1 . 1 30 . . Largest 2 | 2 2 1 1 1 . 1 2 . . Hottest 58 | 40 50 30 30 30 . 30 58 . . Shots Fired 133 | 29 67 1 2 1 . 1 32 . . Gun 116 | 29 64 . . . . . 23 . . Cannon . | . . . . . . . . . . Launcher 17 | . 3 1 2 1 . 1 9 . . Special . | . . . . . . . . . . Kinetic 115 | 29 63 . . . . . 23 . . Thermal 1 | . 1 . . . . . . . . Explosive 17 | . 3 1 2 1 . 1 9 . . Electromagnetic . | . . . . . . . . . . Robot Hit Streak 12 | 7 10 . . 1 . 2 12 . . Robot Miss Streak 6 | 2 6 1 2 . . . 1 . . Penetration Max 1 | . . . . . . . 1 . . Secondary Targets 2 | . 2 . . . . . . . . Max Gunslinging Chain 1 | . 1 . . . . . . . . Shots Hit Robots 105 | 21 41 4 . 1 . 1 34 . 3 Core Hits 78 | 6 21 3 5 5 . . 38 . . Critical Kills . | . . . . . . . . . . Critical Parts Destroyed . | . . . . . . . . . . Critical Strikes 1 | . . . . . . . . . 1 Sever 1 | . . . . . . . . . 1 Melee Attacks 32 | . . 8 . . . 1 13 . 10 Impact . | . . . . . . . . . . Slashing 28 | . . 8 . . . 1 9 . 10 Piercing . | . . . . . . . . . . Sneak Attacks 9 | . . 3 . . . . 6 . . Combat Hostiles . | . . . . . . . . . . Follow-up Attacks . | . . . . . . . . . . Damage Inflicted 4240 | 207 452 178 223 73 . 34 2967 . 106 Guns 1105 | 207 452 . . . . . 446 . . Cannons . | . . . . . . . . . . Explosions 2621 | . . 6 223 73 . 34 2285 . . Melee 514 | . . 172 . . . . 236 . 106 Ramming . | . . . . . . . . . . Kinetic 1092 | 207 439 . . . . . 446 . . Thermal 1018 | . 13 . 133 . . . 872 . . Explosive 1616 | . . 6 90 73 . 34 1413 . . Electromagnetic . | . . . . . . . . . . Impact . | . . . . . . . . . . Slashing 514 | . . 172 . . . . 236 . 106 Piercing . | . . . . . . . . . . Highest Corruption 3 | . . . . . . . 1 1 3 Average Corruption 1 | . . . . . . . 1 1 1 Corruption Purged . | . . . . . . . . . . Corruption Blocked . | . . . . . . . . . . Effects 4 | . . . . . . . 1 1 2 Matter Fused 2 | . . . . . . . 1 . 1 Data Loss (minor) 2 | . . . . . . . . 1 1 Overload Shots . | . . . . . . . . . . Overflow Damage 259 | . . . . . . . 259 . . Projectiles . | . . . . . . . . . . Explosions 178 | . . . . . . . 178 . . Melee 81 | . . . . . . . 81 . . Knockbacks . | . . . . . . . . . . Impact . | . . . . . . . . . . Kinetic . | . . . . . . . . . . Secondary . | . . . . . . . . . . Self-Inflicted Damage 207 | . 7 . 40 . . 10 150 . . Shots 5 | . 1 . 1 . . 1 2 . . Rammed . | . . . . . . . . . . Targets Rammed . | . . . . . . . . . . Kicked . | . . . . . . . . . . Crushed . | . . . . . . . . . . Highest Temperature 302 | . 15 1 3 . . . 302 . . Average Temperature 32 | . 4 1 3 . . . 82 . . Received Heat Transfer 459 | . 105 . 9 9 . . 300 . 36 Siege Activations . | . . . . . . . . . . Martial Activations . | . . . . . . . . . . Shielding Activations . | . . . . . . . . . . Robots Disrupted . | . . . . . . . . . . Combat Hostiles . | . . . . . . . . . . Robots Corrupted . | . . . . . . . . . . Combat Hostiles . | . . . . . . . . . . Parts Fried . | . . . . . . . . . . Impact Corruptions . | . . . . . . . . . . Robots Melted . | . . . . . . . . . . Combat Hostiles . | . . . . . . . . . . Parts Melted . | . . . . . . . . . . Heat Transferred 737 | . 37 . 150 . . . 550 . . Parts Sabotaged . | . . . . . . . . . . Parts Stolen . | . . . . . . . . . . Parts Stripped . | . . . . . . . . . . Power Chain Reactions . | . . . . . . . . . . Alert | -11 -10 -9 -9 -8 -7 -7 -6 -6 -6 ------- Run | Yrd Mat Mat Min Mat Fac DSF Fac Low Low Maximum Alert Level 2 | . . . 1 . . . 2 . . Low Security (%) 88 | 100 100 100 83 100 100 100 75 . . Level 1 3 | . . . 16 . . . 5 . . Level 2 8 | . . . . . . . 19 . . Level 3 . | . . . . . . . . . . Level 4 . | . . . . . . . . . . Level 5 . | . . . . . . . . . . High Security . | . . . . . . . . . . Max Security . | . . . . . . . . . . Peak Influence 588 | 10 144 14 214 147 93 64 588 . . Initial 83 | . . 3 3 83 62 58 14 . . Average 79 | 1 57 4 63 114 69 40 122 . . Influence Increases 1602 | 15 281 38 273 74 31 21 824 . 45 Destroy 0b10 Robot/C 440 | . 140 . 60 20 . . 220 . . Destroy 0b10 Robot/NC 110 | 15 15 10 5 5 . . 60 . . Destroy Leader 112 | . 34 2 10 10 . . 56 . . Successful Hack 166 | . 46 15 . 5 31 . 69 . . Disable Machine 435 | . 15 . 105 30 . . 285 . . Destroy Structure 174 | . 16 11 33 4 . 6 104 . . Partial Spotted 30 | . 15 . . . . . 15 . . Lose Combat Pursuer 135 | . . . 60 . . 15 15 . 45 Influence Decreases 1571 | 15 271 40 67 151 85 75 301 285 281 Entered New Map 514 | . . 7 5 131 75 25 15 205 51 Time Decay 771 | 15 195 33 42 20 10 . 196 80 180 Lost Part 180 | . 10 . . . . 50 70 . 50 Lost Ally 40 | . . . 20 . . . 20 . . Purge Threat 66 | . 66 . . . . . . . . Squads Dispatched 17 | . 2 3 . 1 1 2 8 . . Investigation 11 | . 2 3 . 1 1 . 4 . . Extermination 2 | . . . . . . . 2 . . Reinforcement 2 | . . . . . . 2 . . . Assault 1 | . . . . . . . 1 . . Garrison 1 | . . . . . . . 1 . . Intercept . | . . . . . . . . . . Searches Triggered . | . . . . . . . . . . Construction Impeded . | . . . . . . . . . . Haulers Reinforced . | . . . . . . . . . . Active Scanning Responses . | . . . . . . . . . . Cargo Convoy Interrupts . | . . . . . . . . . . Stealth | -11 -10 -9 -9 -8 -7 -7 -6 -6 -6 --------- Run | Yrd Mat Mat Min Mat Fac DSF Fac Low Low Distress Signals 2 | . 1 . . . . . 1 . . Communications Jammed . | . . . . . . . . . . Distress Signals . | . . . . . . . . . . Times Spotted 91 | . 19 5 9 6 . 6 32 4 10 Peak Tracking Total 11 | . 5 3 5 4 . 7 11 3 5 Tactical Retreats 14 | . 1 . 2 . . 1 5 1 4 ECM-based Alert Blocks 21 | . 2 . . . . . 12 . 7 Traps | -11 -10 -9 -9 -8 -7 -7 -6 -6 -6 ------- Run | Yrd Mat Mat Min Mat Fac DSF Fac Low Low Traps Triggered 4 | . . . . . . 4 . . . Indirectly . | . . . . . . . . . . Trap Hack Attempts . | . . . . . . . . . . Triggered . | . . . . . . . . . . Disarmed . | . . . . . . . . . . Reprogrammed . | . . . . . . . . . . Reused . | . . . . . . . . . . Traps Extracted . | . . . . . . . . . . Installed . | . . . . . . . . . . Triggered . | . . . . . . . . . . Machines | -11 -10 -9 -9 -8 -7 -7 -6 -6 -6 ---------- Run | Yrd Mat Mat Min Mat Fac DSF Fac Low Low Machines Disabled 29 | . 1 . 7 2 . . 19 . . Max in Single Turn 11 | . 1 . 7 2 . . 11 . . Machines Repaired . | . . . . . . . . . . Machines Dismantled . | . . . . . . . . . . Machines Sabotaged . | . . . . . . . . . . Overloaded Fab Kills . | . . . . . . . . . . Hacking | -11 -10 -9 -9 -8 -7 -7 -6 -6 -6 --------- Run | Yrd Mat Mat Min Mat Fac DSF Fac Low Low Machines Accessed 30 | . 8 3 . 3 3 . 13 . . Terminals 21 | . 6 3 . 3 3 . 6 . . Fabricators 2 | . . . . . . . 2 . . Repair Stations 1 | . 1 . . . . . . . . Recycling Units 3 | . 1 . . . . . 2 . . Scanalyzers 1 | . . . . . . . 1 . . Garrison Access 2 | . . . . . . . 2 . . Total Hacks 87 | . 32 11 . 7 7 . 30 . . Successful 46 | . 19 6 . 1 5 . 15 . . Failed 41 | . 13 5 . 6 2 . 15 . . Catastrophic 8 | . 2 1 . 1 . . 4 . . Database Lockouts . | . . . . . . . . . . Manual 59 | . 25 11 . 6 4 . 13 . . Terminals 66 | . 26 11 . 7 7 . 15 . . Fabricators 6 | . . . . . . . 6 . . Repair Stations 2 | . 2 . . . . . . . . Recycling Units 7 | . 4 . . . . . 3 . . Scanalyzers 4 | . . . . . . . 4 . . Garrison Access 2 | . . . . . . . 2 . . Terminal Hacks 14 | . 7 1 . 1 3 . 2 . . Part Schematic 1 | . . . . . . . 1 . . Robot Schematic 1 | . 1 . . . . . . . . Robot Analysis 2 | . 2 . . . . . . . . Open DSF 1 | . . . . . 1 . . . . Branch Access Points 1 | . . . . 1 . . . . . Terminal Index 3 | . 1 1 . . . . 1 . . Fabricator Index 1 | . . . . . 1 . . . . Unreport Threat 1 | . 1 . . . . . . . . Locate Traps 2 | . 1 . . . 1 . . . . Zone Layout 1 | . 1 . . . . . . . . Fabricator Hacks 4 | . . . . . . . 4 . . Load Schematic 2 | . . . . . . . 2 . . Build 2 | . . . . . . . 2 . . Repair Station Hacks 2 | . 2 . . . . . . . . Scan Component 1 | . 1 . . . . . . . . Repair 1 | . 1 . . . . . . . . Recycling Unit Hacks 2 | . 1 . . . . . 1 . . Retrieve Components 2 | . 1 . . . . . 1 . . Scanalyzer 3 | . . . . . . . 3 . . Insert Component 1 | . . . . . . . 1 . . Analyze 1 | . . . . . . . 1 . . Retrieve Study 1 | . . . . . . . 1 . . Garrison Access Hacks . | . . . . . . . . . . Unauthorized Hacks 21 | . 9 5 . . 2 . 5 . . Terminals 17 | . 6 5 . . 2 . 4 . . Track 2 | . 1 1 . . . . . . . Assimilate 2 | . . 1 . . . . 1 . . Botnet 11 | . 3 3 . . 2 . 3 . . Disrupt 1 | . 1 . . . . . . . . Operators 1 | . 1 . . . . . . . . Fabricators . | . . . . . . . . . . Repair Stations . | . . . . . . . . . . Recycling Units 4 | . 3 . . . . . 1 . . Reject 1 | . 1 . . . . . . . . Recyclers 2 | . 1 . . . . . 1 . . Mask 1 | . 1 . . . . . . . . Scanalyzers . | . . . . . . . . . . Garrison Access . | . . . . . . . . . . Data Cores Recovered 1 | . . . . 1 . . . . . Used 1 | . . . . 1 . . . . . Hacking Detections 27 | . 6 3 . 3 2 . 13 . . Full Trace Events 12 | . 3 3 . 1 1 . 4 . . Feedback Events . | . . . . . . . . . . Feedback Blocked . | . . . . . . . . . . Robot Schematics Acquired 1 | . 1 . . . . . . . . Robots Built . | . . . . . . . . . . Authchips . | . . . . . . . . . . Time . | . . . . . . . . . . Total Robot Build Rating . | . . . . . . . . . . Part Schematics Acquired 2 | . . . . . . . 2 . . Parts Built 2 | . . . . . . . 2 . . Authchips . | . . . . . . . . . . Time 175 | . . . . . . . 175 . . Total Part Build Rating 14 | . . . . . . . 14 . . Part Studies Acquired . | . . . . . . . . . . Parts Repaired 1 | . 1 . . . . . . . . Time 38 | . 38 . . . . . . . . Parts Recycled . | . . . . . . . . . . Recycled Matter . | . . . . . . . . . . Retrieved Matter . | . . . . . . . . . . Retrieved Components 8 | . 6 . . . . . 2 . . Parts Scanalyzed 1 | . . . . . . . 1 . . Part Schematics Acquired 1 | . . . . . . . 1 . . Parts Damaged . | . . . . . . . . . . Bothacking | -11 -10 -9 -9 -8 -7 -7 -6 -6 -6 ------------ Run | Yrd Mat Mat Min Mat Fac DSF Fac Low Low Used RIF Installer . | . . . . . . . . . . Robots Hacked 3 | . . . . . . . 3 . . Non-combat 3 | . . . . . . . 3 . . Combat . | . . . . . . . . . . Robot Hacks Applied 4 | . . . . . . . 4 . . no_distress 3 | . . . . . . . 3 . . find_chute 1 | . . . . . . . 1 . . Relay Couplers Released . | . . . . . . . . . . Fabnet Peak Effective % . | . . . . . . . . . . Robots Rewired . | . . . . . . . . . . Allies Hacked . | . . . . . . . . . . Hacks Repelled . | . . . . . . . . . . Allies | -11 -10 -9 -9 -8 -7 -7 -6 -6 -6 -------- Run | Yrd Mat Mat Min Mat Fac DSF Fac Low Low Total Allies 2 | . . . 1 . . . 1 . . Largest Group 1 | . . . 1 . . . 1 . . Highest-Rated Group 31 | . . . 31 . . . 26 . . Highest-Rated Ally 31 | . . . 31 . . . 26 . . Total Orders 4 | . . . . . . . 4 . . EXPLORE 2 | . . . . . . . 2 . . RETURN 2 | . . . . . . . 2 . . Ally Attacks 2 | . . . 2 . . . . . . Total Damage . | . . . . . . . . . . Kills . | . . . . . . . . . . Allies Corrupted . | . . . . . . . . . . Allies Melted . | . . . . . . . . . . Intel | -11 -10 -9 -9 -8 -7 -7 -6 -6 -6 ------- Run | Yrd Mat Mat Min Mat Fac DSF Fac Low Low Active Infowar (turns) 1763 | 14 414 4 . 18 14 42 708 175 374 Sensors 783 | . . . . 18 . . 216 175 374 Terrain 1247 | 14 372 . . . 14 42 614 175 16 Structural 159 | . . 4 . . . . 155 . . T.N.C. 26 | . 26 . . . . . . . . ECM 462 | . 16 . . . . . 173 . 273 Robot Analysis Total 2 | . 2 . . . . . . . . Derelict Logs Recovered 1 | . . . . . . . . 1 . Drone Launches 5 | . . . . . . . 5 . . Drone Recoveries 3 | . . . . . . . 3 . . Exploration | -11 -10 -9 -9 -8 -7 -7 -6 -6 -6 ------------- Run | Yrd Mat Mat Min Mat Fac DSF Fac Low Low Turns Passed 2286 | 117 481 129 126 42 20 69 753 175 374 Spaces Moved 2696 | 50 437 178 294 102 54 107 943 240 291 Core 128 | 3 . . . . . 58 67 . . Treads . | . . . . . . . . . . Legs 176 | 47 129 . . . . . . . . Wheels . | . . . . . . . . . . Hover 1408 | . . . . . . 1 876 240 291 Flight 984 | . 308 178 294 102 54 48 . . . Fastest Speed 32 | 50 37 32 32 32 32 32 38 46 46 Average Speed 54 | 117 61 33 32 32 32 42 50 46 104 Slowest Speed 200 | 120 130 34 32 32 32 60 150 46 200 Overloaded Moves . | . . . . . . . . . . Propulsion Burnouts . | . . . . . . . . . . Robots Hopped 11 | . 3 2 6 . . . . . . Potential Cave-ins . | . . . . . . . . . . Cave-ins Triggered . | . . . . . . . . . . Exploration Rate (%) 40 | 5 83 29 59 20 3 92 31 37 45 Regions Visited 9 Branch Regions 3 Pre-discovered Areas 1 | . . . 1 . . . . . . Known Exits Taken 3 | . . . . . 1 . 1 1 . Unknown Exits Taken 5 | 1 1 1 1 1 . . . . . Scrap Searched 3 | . . . 2 . . . . . 1 Spaces Dug 37 | . 17 2 . . . . 13 . 5 Terrain Destroyed 202 | . 17 11 37 4 . 6 122 . 5 Melee 9 | . . 2 . . . . 2 . 5 Projectile . | . . . . . . . . . . AOE 193 | . 17 9 37 4 . 6 120 . . Terrain Rammed . | . . . . . . . . . . Walls Destroyed . | . . . . . . . . . . Machines Disabled . | . . . . . . . . . . Actions | -11 -10 -9 -9 -8 -7 -7 -6 -6 -6 --------- Run | Yrd Mat Mat Min Mat Fac DSF Fac Low Low Total 3311 | 79 588 228 318 109 55 127 1158 303 346 Wait 346 | 3 60 31 22 2 . . 129 63 36 Move 2666 | 49 430 174 281 101 53 106 942 239 291 Hop 10 | . 3 1 6 . . . . . . Pick Up 33 | 4 12 3 1 2 . . 8 . 3 Fast Attach 24 | 5 7 . 1 . 1 2 8 . . Attach 19 | 2 5 1 . 1 1 . 6 . 3 Detach 7 | . 4 . . . . 1 2 . . Swap 35 | . 8 6 2 1 . . 15 1 2 Drop 26 | . 12 3 3 1 . 1 5 . 1 Fire 98 | 16 47 1 2 1 . 1 30 . . Melee 32 | . . 8 . . . 1 13 . 10 Ram . | . . . . . . . . . . Kick . | . . . . . . . . . . Crush . | . . . . . . . . . . Escape Stasis 15 | . . . . . . 15 . . . Rewire . | . . . . . . . . . . Trap . | . . . . . . . . . . Miscellaneous . | . . . . . . . . . . Route ------- -11/Scrapyard -10/Materials (discovered 3 exits: *Mat x2 / [*Min]) -9/Materials -9/Mines (discovered 2 exits: *Mat x2) -8/Materials -7/Factory -7/DSF -6/Factory (discovered 2 exits: *Fac / *Low) -6/Lower Caves -6/Lower Caves (discovered 1 exit: *Fac) History --------- Turn | Location | Event 4 | -11/Scrapyard | Discovered new exit (range 16) 118 | -11/Scrapyard | Entered Materials 312 | -10/Materials | Build established: Mutant 413 | -10/Materials | Discovered new exit (range 8) 460 | -10/Materials | Discovered new exit (range 6) 505 | -10/Materials | Repaired Imp. Terrain Scanner 577 | -10/Materials | Discovered new exit (range 11) 599 | -10/Materials | Entered another Materials area 599 | -9/Materials | Evolved 2 slots: Power x1, Propulsion x1 646 | -9/Materials | Build established: Scavenger-Mutant 723 | -9/Materials | Discovered new exit (range 14) 728 | -9/Materials | Entered Mines 751 | -9/Mines | Escorted by a lone wolf Derelict 775 | -9/Mines | Found a damaged Exp. Sensor Array with a note attached 776 | -9/Mines | Found Prototype Device 786 | -9/Mines | Discovered new exit (range 7) 793 | -9/Mines | Learned location of Storage (-7) 852 | -9/Mines | Discovered new exit (range 8) 854 | -9/Mines | Entered Materials 854 | -8/Materials | Evolved 2 slots: Propulsion x1, Utility x1 854 | -8/Materials | Identified Exp. Sensor Array 894 | -8/Materials | Discovered new exit (range 8) 896 | -8/Materials | Entered Factory 896 | -7/Factory | Evolved 2 slots: Utility x2 916 | -7/Factory | Identified exit to DSF 916 | -7/Factory | Entered DSF 935 | -7/DSF | Additional patrols routed to DSF 967 | -7/DSF | Core integrity fell below 50% 971 | -7/DSF | Discovered new exit (range 14) 985 | -7/DSF | Entered Factory 985 | -6/Factory | Evolved 2 slots: Utility x2 989 | -6/Factory | Lost 5 parts (1p3n1u) 1356 | -6/Factory | Discovered new exit (range 15) 1450 | -6/Factory | Fabricated Imp. Linear Gravjet (x2) 1535 | -6/Factory | Garrison activated, responded to threat 1685 | -6/Factory | First assault squad dispatched 1731 | -6/Factory | Discovered new exit (range 11) 1738 | -6/Factory | Identified exit to Lower Caves 1738 | -6/Factory | Entered Lower Caves 1770 | -6/Lower Caves | Learned Factory emergency access door positions 1803 | -6/Lower Caves | Encountered a Warlord checkpoint 1819 | -6/Lower Caves | Encountered an infested base 1907 | -6/Lower Caves | Discovered new exit (range 11) 1912 | -6/Lower Caves | Identified exit to Lower Caves 1913 | -6/Lower Caves | Entered another Lower Caves area 1928 | -6/Lower Caves | Discovered new exit (range 9) 1932 | -6/Lower Caves | Identified exit to Factory 2227 | -6/Lower Caves | Build established: Mutant 2287 | -6/Lower Caves | Self-destructed Last Messages --------------- 01929_ Imp. Terrain Scanner destroyed. 01932_ EXIT=IDENTIFIED: FACTORY 01943_ Searching scrap... 01943_ Found Beamcaster. 01943_ Found Imp. Datajack. 01943_ Found 0b10 Decoder Chip [Looter]. 01943_ Found System Guard. 01943_ Found 56 Matter. 01944_ Acquired 56 matter. 01946_ Acquired 0b10 Decoder Chip [Looter]. 01950_ Acquired Imp. Datajack. 01955_ Dropped Datajack. 01955_ Acquired System Guard. 01974_ 41-ED7(k) breaks down the debris. 02071_ System corrupted: Component data lost. 02202_ System corrupted: Matter fused (-9). 02275_ Exp. Propulsion Shielding destroyed. 02275_ Gravmag System destroyed. 02280_ P-60 Hacker Gravmag System severed. 02286_ Chainsword destroyed. Map ----- +----------------------------------------------------+ | | | | | | | | | | | | | | | ?????????????????????????????????????????????????? | | ?????????????????????????????????????????????????? | | ?????????????????????????????????????????????????? | | ?????????????????????????????????????????????????? | | ?????????????????????????????????????????????????? | | ?????????????????????????????????????????????????? | | ?????????????????????????????????????????????????? | | ?????????????????????????????????????????????????? | | ?????????????????????????????????????????????????? | | ?????????????????????????????????????????????????? | | ?????????????????????????????????????????????????? | | ?????????????????????????????????????????????????? | | ?????????????????????????????????????????????????? | | ?????????????????????????????????????????????????? | | ?????????????????????????????????????????????????? | | ???????????????????????????##????????????????????? | | ?????????????????????????## #????????????????????? | | ??????????????????????####p ##???????????????????? | | ??????????????????#???# @ #### ???????? | | ??????????????????# ??#gb# ???????? | | ??????????????????# ??# # ???????? | | ?????????# ??????# ??#gg# ???????? | | ?????????# ?????# ?# ### ????????? | | ?????????# ???# ## #??## ????????? | | ?????????# ### # #????# ?????????? | | ????????? #?????### ?????????? | | ?????????????# #????????? ###?????????? | | ?????????????##### #??????????##???????????? | | ????????????####?# # ###???????????????????????? | | ???????????## ### ###"###??????????????????????? | | ???????????# #?## ##?????????????????????? | | ???????????# ???# ##????????????????????? | | ???????????# ######?## #????????????????????? | | ???????????# ##?## #????????????????????? | | ??????????## #?## ##????????????????????? | | ??????????# #?# ##?????????????????????? | | ??????????# ### ##?# ##?????????????????????? | | ??????????# ###?###?## #?????????????????????? | | ??????????# ##??????# #?????????????????????? | | ??????????# ##?????# #?####????????????????? | | ??????????## ####### #?# ####?????????????? | | ???????????## #?# ###???????????? | | ????????????# #?# ##??????????? | +----------------------------------------------------+ Best States ------------- Heat Dissipation 37 Energy Generation 23 Energy Capacity 250 Matter Stores 300 Matter Capacity 300 Sight Range 16 Robot Scan Range 20 Terrain Scan Range 16 Terrain Scan Density 210 ECM Strength 1 Power Amplification 20 Additional Mass Support 9 Propulsion Shielding 90 Phase Shifting 5 Evasion (%) 63 Item Schematics ----------------- Imp. Linear Gravjet | -6/Factory | Hacked Exp. Propulsion Shielding | -6/Factory | Scanalyzed Robot Schematics ------------------ M-13 Machinist | -10/Materials | Hacked Fabricated ------------ Imp. Linear Gravjet | x2 | -6/Factory Repaired ---------- Imp. Terrain Scanner | 9% | -10/Materials Studied --------- None Alien Tech Used ----------------- None Achievements -------------- Heavy Suspicion Myspace Not Today, Chutes That Tickles Window Shopping Challenges ------------ None Game ------ Seed GreatExplosiveRedistributor Manual? 0 Play Time 01:02:23 Cumulative 1172.5 hours Start 2025.12.15 @ 00:16:52 End 2025.12.15 @ 01:17:45 Sessions 1 Manual Loads 0 Difficulty Rogue Special Mode None Game No. 502 Rogue 502 Adventurer 0 Explorer 0 Win Type - Total 15 Types 13/0/1/1/0/0/0/0/0/0 Lore% 52 Gallery% 71 Achievement% 41 Wizard Run 0 Options --------- Layout 1 ASCII 0 Keyboard 1 Movement Numpad Keybinds 0 Fullscreen 1 Font 24/Proggy Map View 76x35 Zoom Use 0% Tactical HUD 1 Map Filters NONE Filters NONE Steam 1 RUN: aa820265-bb3e-4122-942f-293778e07d6b